fUSD/lending_fUSD_20240105
["ID","MTS","AMOUNT","RATE_DAILY","PERIOD"]
[310264292,1704425484185,-500.0,0.00036438,3]
[310264293,1704425484194,-500.0,0.00036438,3]
[310264294,1704425484203,-12713.82,0.00036438,3]
[310264295,1704425484213,-500.0,0.00036438,3]
[310264296,1704425484224,-500.0,0.00036438,3]
[310264297,1704425484234,-505.65252117,0.00036438,3]
[310264298,1704425484243,-537.21,0.00036438,3]
[310264299,1704425484252,-500.0,0.00036438,3]
[310264300,1704425484261,-500.0,0.00036438,3]
[310264301,1704425484270,-307.37555781,0.00036438,3]
[310264302,1704425484279,-1128.74,0.00036438,3]
[310264303,1704425484289,-552.12929065,0.00036438,3]
[310264304,1704425484298,-1038.9,0.00036438,3]
[310264305,1704425484307,-500.0,0.00036438,3]
[310264306,1704425484316,-500.0,0.00036438,3]
[310264307,1704425484325,-500.0,0.00036438,3]
[310264308,1704425484337,-248.01002892,0.00036438,3]
[310264309,1704425484347,-1358.49,0.00036438,3]
[310264310,1704425484357,-856.28,0.00036438,3]
[310264311,1704425484367,-1000.47,0.00036438,3]
[310264312,1704425484376,-1014.3,0.00036438,3]
[310264313,1704425484386,-500.0,0.00036438,3]
[310264314,1704425484395,-1090.34,0.00036438,3]
[310264315,1704425484404,-500.0,0.00036438,3]
[310264316,1704425484413,-1239.16,0.00036438,3]
[310264317,1704425484423,-500.0,0.00036438,3]
[310264318,1704425484432,-500.0,0.00036438,3]
[310264319,1704425484442,-5374.08,0.00036438,3]
[310264320,1704425484451,-392.1456895,0.00036438,3]
[310264321,1704425484461,-532.58,0.00036438,3]
[310264322,1704425484474,-903.2,0.00036438,3]
[310264323,1704425484483,-500.0,0.00036438,3]
[310264324,1704425484493,-500.0,0.00036438,3]
[310264325,1704425484502,-500.0,0.00036438,3]
[310264326,1704425484511,-500.0,0.00036438,3]
[310264327,1704425484521,-543.93,0.00036438,3]
[310264328,1704425484530,-500.0,0.00036438,3]
[310264329,1704425484540,-847.35,0.00036438,3]
[310264330,1704425484551,-500.0,0.00036438,3]
[310264331,1704425484562,-500.0,0.00036438,3]
[310264332,1704425484572,-926.28,0.00036438,3]
[310264333,1704425484585,-525.14,0.00036438,3]
[310264334,1704425484594,-500.0,0.00036438,3]
[310264335,1704425484604,-500.0,0.00036438,3]
[310264336,1704425484613,-519.4902097,0.00036438,3]
[310264337,1704425484623,-500.0,0.00036438,3]
[310264338,1704425484633,-500.0,0.00036438,3]
[310264339,1704425484642,-597.71,0.00036438,3]
[310264340,1704425484652,-7505.95,0.00036438,3]
[310264341,1704425484662,-500.0,0.00036438,3]
[310264342,1704425484672,-714.54,0.00036438,3]
[310264343,1704425484681,-500.0,0.00036438,3]
[310264344,1704425484690,-500.0,0.00036438,3]
[310264345,1704425484700,-500.0,0.00036438,3]
[310264346,1704425484710,-500.0,0.00036438,3]
[310264347,1704425484719,-500.0,0.00036438,3]
[310264348,1704425484729,-500.0,0.00036438,3]
[310264349,1704425484739,-500.0,0.00036438,3]
[310264350,1704425484749,-500.0,0.00036438,3]
[310264351,1704425484759,-500.0,0.00036438,3]
[310264352,1704425484768,-500.0,0.00036438,3]
[310264353,1704425484777,-836.59,0.00036438,3]
[310264354,1704425484787,-500.0,0.00036438,3]
[310264355,1704425484796,-500.0,0.00036438,3]
[310264356,1704425484806,-500.0,0.00036438,3]
[310264357,1704425484816,-500.0,0.00036438,3]
[310264358,1704425484825,-525.05335305,0.00036438,3]
[310264359,1704425484835,-843.48,0.00036438,3]
[310264360,1704425484845,-500.0,0.00036438,3]
[310264361,1704425484854,-500.0,0.00036438,3]
[310264362,1704425484864,-2843.39,0.00036438,3]
[310264363,1704425484874,-500.0,0.00036438,3]
[310264364,1704425484884,-731.98,0.00036438,3]
[310264365,1704425484893,-500.0,0.00036438,3]
[310264366,1704425484903,-500.0,0.00036438,3]
[310264367,1704425484914,-500.0,0.00036438,3]
[310264368,1704425484925,-765.74,0.00036438,3]
[310264369,1704425484935,-495.48346901,0.00036438,3]
[310264370,1704425484944,-500.0,0.00036438,3]
[310264371,1704425484953,-500.0,0.00036438,3]
[310264372,1704425484963,-687.9,0.00036438,3]
[310264373,1704425484973,-500.0,0.00036438,3]
[310264374,1704425484983,-500.0,0.00036438,3]
[310264375,1704425484993,-920.29,0.00036438,3]
[310264376,1704425485002,-500.0,0.00036438,3]
[310264377,1704425485012,-602.4153264,0.00036438,3]
[310264378,1704425485022,-500.0,0.00036438,3]
[310264379,1704425485032,-500.0,0.00036438,3]
[310264380,1704425485041,-500.0,0.00036438,3]
[310264381,1704425485051,-608.15,0.00036438,3]
[310264382,1704425485060,-500.0,0.00036438,3]
[310264383,1704425485070,-500.0,0.00036438,3]
[310264384,1704425485079,-500.0,0.00036438,3]
[310264385,1704425485089,-500.0,0.00036438,3]
[310264386,1704425485098,-327.65602626,0.00036438,3]
[310264387,1704425485107,-500.0,0.00036438,3]
[310264388,1704425485117,-500.0,0.00036438,3]
[310264389,1704425485126,-500.0,0.00036438,3]
[310264390,1704425485136,-500.0,0.00036438,3]
[310264391,1704425485146,-437.63140934,0.00036438,3]
[310264392,1704425485155,-326.78981685,0.00036438,3]
[310264393,1704425485165,-500.0,0.00036438,3]
[310264394,1704425485174,-500.0,0.00036438,3]
[310264395,1704425485183,-577.98753626,0.00036438,3]
[310264396,1704425485193,-995.28,0.00036438,3]
[310264397,1704425485202,-1208.34,0.00036438,3]
[310264398,1704425485211,-500.0,0.00036438,3]
[310264399,1704425485221,-548.27811618,0.00036438,3]
[310264400,1704425485231,-3826.66,0.00036438,3]
[310264401,1704425485240,-500.0,0.00036438,3]
[310264402,1704425485251,-500.0,0.00036438,3]
[310264403,1704425485261,-500.0,0.00036438,3]
[310264404,1704425485270,-1465.93,0.00036438,3]
[310264405,1704425485281,-2214.47,0.00036438,3]
[310264406,1704425485290,-975.28,0.00036438,3]
[310264407,1704425485299,-579.51262643,0.00036438,3]
[310264408,1704425485310,-421.56411122,0.00036438,3]
[310264409,1704425485320,-500.0,0.00036438,3]
[310264410,1704425485331,-500.0,0.00036438,3]
[310264411,1704425485342,-520.57370648,0.00036438,3]
[310264412,1704425485351,-500.0,0.00036438,3]
[310264413,1704425485360,-500.0,0.00036438,3]
[310264414,1704425485369,-169.1380484,0.00036438,3]
[310264415,1704425485378,-500.0,0.00036438,3]
[310264416,1704425485387,-500.0,0.00036438,3]
[310264417,1704425485396,-500.0,0.00036438,3]
[310264418,1704425485405,-500.0,0.00036438,3]
[310264419,1704425485415,-500.0,0.00036438,3]
[310264420,1704425485425,-4026.21,0.00036438,3]
[310264421,1704425485434,-500.0,0.00036438,3]
[310264422,1704425485443,-201.0,0.000365,16]
[310264423,1704425485453,-8248.29,0.000365,7]
[310264424,1704425485463,-13965.33,0.000365,7]
[310264425,1704425485474,-153.84,0.0003653,2]
[310264426,1704425485484,-150.0,0.00036554,2]
[310264427,1704425485494,-153.81315469,0.00036569,2]
[310264428,1704425485503,-11385.113,0.00036597,2]
[310264429,1704425485513,-833.0,0.00036597,2]
[310264430,1704425485523,-157.40105,0.00036598,2]
[310264431,1704425485532,-1249.23,0.000366,7]
[310264432,1704425485542,-215.45,0.00036613,15]
[310264433,1704425485552,-6829.56934814,0.00036616,2]
[310264434,1704425485561,-2701.87453054,0.00036679,3]
[310264435,1704425485570,-103414.29607288,0.00036679,10]
[310264436,1704425485581,-9665.48306043,0.00036679,10]
[310264437,1704425485590,-191.33518818,0.00036709,2]
[310264438,1704425485600,-1689.74221378,0.00036712,3]
[310264439,1704425485609,-510.59,0.00036712,3]
[310264440,1704425485619,-500.0,0.00036712,3]
[310264441,1704425485630,-500.0,0.00036712,3]
[310264442,1704425485640,-500.0,0.00036712,3]
[310264443,1704425485650,-500.0,0.00036712,3]
[310264444,1704425485660,-500.0,0.00036712,3]
[310264445,1704425485669,-585.48,0.00036712,3]
[310264446,1704425485679,-500.0,0.00036712,3]
[310264447,1704425485689,-530.68095757,0.00036712,3]
[310264448,1704425485698,-519.7288443,0.00036712,3]
[310264449,1704425485708,-510.719867,0.00036712,3]
[310264450,1704425485717,-616.63954812,0.00036712,3]
[310264451,1704425485726,-500.0,0.00036712,3]
[310264452,1704425485735,-376.806727,0.00036712,3]
[310264453,1704425485744,-500.0,0.00036712,3]
[310264454,1704425485754,-500.0,0.00036712,3]
[310264455,1704425485763,-500.0,0.00036712,3]
[310264456,1704425485773,-500.0,0.00036712,3]
[310264457,1704425485783,-500.0,0.00036712,3]
[310264458,1704425485792,-500.0,0.00036712,3]
[310264459,1704425485802,-500.0,0.00036712,3]
[310264460,1704425485811,-500.0,0.00036712,3]
[310264461,1704425485820,-515.79127516,0.00036712,3]
[310264462,1704425485831,-500.0,0.00036712,3]
[310264463,1704425485840,-500.0,0.00036712,3]
[310264464,1704425485849,-500.0,0.00036712,3]
[310264465,1704425485859,-500.0,0.00036712,3]
[310264466,1704425485868,-421.08242353,0.00036712,3]
[310264467,1704425485878,-500.0,0.00036712,3]
[310264468,1704425485888,-500.0,0.00036712,3]
[310264469,1704425485898,-287.66680905,0.00036712,3]
[310264470,1704425485908,-500.0,0.00036712,3]
[310264471,1704425485918,-500.0,0.00036712,3]
[310264472,1704425485930,-500.0,0.00036712,3]
[310264473,1704425485940,-500.0,0.00036712,3]
[310264474,1704425485950,-500.0,0.00036712,3]
[310264475,1704425485959,-623.86617915,0.00036712,3]
[310264476,1704425485969,-510.20231461,0.00036712,3]
[310264477,1704425485979,-500.0,0.00036712,3]
[310264478,1704425485988,-261.45529723,0.00036712,3]
[310264479,1704425485997,-500.0,0.00036712,3]
[310264480,1704425486007,-500.0,0.00036712,3]
[310264481,1704425486017,-591.48240173,0.00036712,3]
[310264482,1704425486027,-500.0,0.00036712,3]
[310264483,1704425486037,-288.91567624,0.00036712,3]
[310264484,1704425486047,-503.09142137,0.00036712,3]
[310264485,1704425486057,-500.0,0.00036712,3]
[310264486,1704425486066,-500.0,0.00036712,3]
[310264487,1704425486075,-546.31543465,0.00036712,3]
[310264488,1704425486086,-524.87039659,0.00036712,3]
[310264489,1704425486095,-500.0,0.00036712,3]
[310264490,1704425486104,-500.0,0.00036712,3]
[310264491,1704425486113,-500.0,0.00036712,3]
[310264492,1704425486123,-500.0,0.00036712,3]
[310264493,1704425486132,-498.09393766,0.00036712,3]
[310264494,1704425486141,-633.3112265,0.00036712,3]
[310264495,1704425486150,-500.0,0.00036712,3]
[310264496,1704425486159,-519.54970442,0.00036712,3]
[310264497,1704425486169,-500.0,0.00036712,3]
[310264498,1704425486178,-500.0,0.00036712,3]
[310264499,1704425486187,-500.0,0.00036712,3]
[310264500,1704425486197,-500.0,0.00036712,3]
[310264501,1704425486206,-914.92,0.00036712,3]
[310264502,1704425486215,-500.0,0.00036712,3]
[310264503,1704425486224,-500.0,0.00036712,3]
[310264504,1704425486233,-500.0,0.00036712,3]
[310264505,1704425486242,-500.0,0.00036712,3]
[310264506,1704425486251,-500.0,0.00036712,3]
[310264507,1704425486261,-505.56226283,0.00036712,3]
[310264508,1704425486270,-296.98200133,0.00036712,3]
[310264509,1704425486279,-500.0,0.00036712,3]
[310264510,1704425486290,-500.0,0.00036712,3]
[310264511,1704425486300,-500.0,0.00036712,3]
[310264512,1704425486309,-500.0,0.00036712,3]
[310264513,1704425486319,-500.0,0.00036712,3]
[310264514,1704425486330,-729.05,0.00036712,3]
[310264515,1704425486342,-500.0,0.00036712,3]
[310264516,1704425486352,-500.0,0.00036712,3]
[310264517,1704425486361,-1671.27,0.00036712,3]
[310264518,1704425486371,-500.0,0.00036712,3]
[310264519,1704425486380,-500.0,0.00036712,3]
[310264520,1704425486389,-500.0,0.00036712,3]
[310264521,1704425486398,-500.0,0.00036712,3]
[310264522,1704425486408,-500.0,0.00036712,3]
[310264523,1704425486417,-500.0,0.00036712,3]
[310264524,1704425486427,-500.0,0.00036712,3]
[310264525,1704425486587,-500.0,0.00036712,3]
[310264526,1704425486597,-500.0,0.00036712,3]
[310264527,1704425486608,-500.0,0.00036712,3]
[310264528,1704425486617,-838.94,0.00036712,3]
[310264529,1704425486630,-500.0,0.00036712,3]
[310264530,1704425486640,-556.38431977,0.00036712,3]
[310264531,1704425486649,-500.0,0.00036712,3]
[310264532,1704425486660,-500.0,0.00036712,3]
[310264533,1704425486669,-500.0,0.00036712,3]
[310264534,1704425486678,-513.79742382,0.00036712,3]
[310264535,1704425486687,-500.0,0.00036712,3]
[310264536,1704425486697,-500.0,0.00036712,3]
[310264537,1704425486708,-313.02853285,0.00036712,3]
[310264538,1704425486717,-500.0,0.00036712,3]
[310264539,1704425486727,-500.0,0.00036712,3]
[310264540,1704425486736,-500.0,0.00036712,3]
[310264541,1704425486746,-500.0,0.00036712,3]
[310264542,1704425486756,-500.0,0.00036712,3]
[310264543,1704425486765,-625.73926243,0.00036712,3]
[310264544,1704425486774,-500.0,0.00036712,3]
[310264545,1704425486783,-500.0,0.00036712,3]
[310264546,1704425486793,-500.0,0.00036712,3]
[310264547,1704425486802,-500.0,0.00036712,3]
[310264548,1704425486811,-518.42328907,0.00036712,3]
[310264549,1704425486821,-500.0,0.00036712,3]
[310264550,1704425486831,-514.48938587,0.00036712,3]
[310264551,1704425486841,-500.0,0.00036712,3]
[310264552,1704425486850,-500.0,0.00036712,3]
[310264553,1704425486860,-500.0,0.00036712,3]
[310264554,1704425486869,-500.0,0.00036712,3]
[310264555,1704425486878,-501.45106914,0.00036712,3]
[310264556,1704425486887,-500.0,0.00036712,3]
[310264557,1704425486897,-500.0,0.00036712,3]
[310264558,1704425486906,-440.68492522,0.00036712,3]
[310264559,1704425486917,-565.19602686,0.00036712,3]
[310264560,1704425486928,-500.0,0.00036712,3]
[310264561,1704425486938,-500.0,0.00036712,3]
[310264562,1704425486947,-565.86802555,0.00036712,3]
[310264563,1704425486956,-500.0,0.00036712,3]
[310264564,1704425486965,-500.0,0.00036712,3]
[310264565,1704425486974,-500.0,0.00036712,3]
[310264566,1704425486983,-500.0,0.00036712,3]
[310264567,1704425486993,-500.0,0.00036712,3]
[310264568,1704425487003,-517.81537025,0.00036712,3]
[310264569,1704425487013,-500.0,0.00036712,3]
[310264570,1704425487023,-500.0,0.00036712,3]
[310264571,1704425487033,-500.0,0.00036712,3]
[310264572,1704425487042,-500.0,0.00036712,3]
[310264573,1704425487052,-500.0,0.00036712,3]
[310264574,1704425487061,-500.0,0.00036712,3]
[310264575,1704425487070,-500.0,0.00036712,3]
[310264576,1704425487080,-154.68072872,0.00036712,3]
[310264577,1704425487089,-500.0,0.00036712,3]
[310264578,1704425487099,-500.0,0.00036712,3]
[310264579,1704425487108,-573.28,0.00036712,3]
[310264580,1704425487117,-500.0,0.00036712,3]
[310264581,1704425487126,-500.0,0.00036712,3]
[310264582,1704425487136,-500.0,0.00036712,3]
[310264583,1704425487145,-307.38184921,0.00036712,3]
[310264584,1704425487154,-500.0,0.00036712,3]
[310264585,1704425487164,-500.0,0.00036712,3]
[310264586,1704425487174,-517.12623344,0.00036712,3]
[310264587,1704425487184,-524.6457894,0.00036712,3]
[310264588,1704425487193,-500.0,0.00036712,3]
[310264589,1704425487203,-373.21354144,0.00036712,3]
[310264590,1704425487212,-500.0,0.00036712,3]
[310264591,1704425487221,-534.6977565,0.00036712,3]
[310264592,1704425487230,-500.0,0.00036712,3]
[310264593,1704425487239,-500.0,0.00036712,3]
[310264594,1704425487250,-500.0,0.00036712,3]
[310264595,1704425487259,-500.0,0.00036712,3]
[310264596,1704425487268,-500.0,0.00036712,3]
[310264597,1704425487278,-586.44888668,0.00036712,3]
[310264598,1704425487287,-500.0,0.00036712,3]
[310264599,1704425487297,-500.0,0.00036712,3]
[310264600,1704425487307,-500.0,0.00036712,3]
[310264601,1704425487316,-500.0,0.00036712,3]
[310264602,1704425487328,-500.0,0.00036712,3]
[310264603,1704425487339,-500.0,0.00036712,3]
[310264604,1704425487348,-500.0,0.00036712,3]
[310264605,1704425487357,-500.0,0.00036712,3]
[310264606,1704425487366,-500.0,0.00036712,3]
[310264607,1704425487375,-500.0,0.00036712,3]
[310264608,1704425487385,-500.0,0.00036712,3]
[310264609,1704425487394,-500.0,0.00036712,3]
[310264610,1704425487403,-500.0,0.00036712,3]
[310264611,1704425487413,-500.0,0.00036712,3]
[310264612,1704425487423,-400.49466504,0.00036712,3]
[310264613,1704425487433,-573.60107463,0.00036712,3]
[310264614,1704425487444,-581.59,0.00036712,3]
[310264615,1704425487454,-627.13146025,0.00036712,3]
[310264616,1704425487463,-500.0,0.00036712,3]
[310264617,1704425487472,-500.0,0.00036712,3]
[310264618,1704425487485,-644.61653889,0.00036712,3]
[310264619,1704425487495,-500.0,0.00036712,3]
[310264620,1704425487505,-518.78718418,0.00036712,3]
[310264621,1704425487516,-500.0,0.00036712,3]
[310264622,1704425487525,-551.91493163,0.00036712,3]
[310264623,1704425487534,-500.0,0.00036712,3]
[310264624,1704425487543,-500.0,0.00036712,3]
[310264625,1704425487553,-500.0,0.00036712,3]
[310264626,1704425487564,-501.25,0.00036712,3]
[310264627,1704425487574,-537.11174093,0.00036712,3]
[310264628,1704425487584,-500.0,0.00036712,3]
[310264629,1704425487594,-500.0,0.00036712,3]
[310264630,1704425487603,-500.0,0.00036712,3]
[310264631,1704425487612,-500.0,0.00036712,3]
[310264632,1704425487621,-500.0,0.00036712,3]
[310264633,1704425487630,-500.0,0.00036712,3]
[310264634,1704425487640,-272.76247926,0.00036712,3]
[310264635,1704425487650,-500.0,0.00036712,3]
[310264636,1704425487659,-500.0,0.00036712,3]
[310264637,1704425487669,-535.51946148,0.00036712,3]
[310264638,1704425487679,-500.0,0.00036712,3]
[310264639,1704425487688,-500.0,0.00036712,3]
[310264640,1704425487698,-257.82895652,0.00036712,3]
[310264641,1704425487709,-500.0,0.00036712,3]
[310264642,1704425487718,-539.32221,0.00036712,3]
[310264643,1704425487728,-500.0,0.00036712,3]
[310264644,1704425487737,-500.0,0.00036712,3]
[310264645,1704425487746,-500.0,0.00036712,3]
[310264646,1704425487757,-500.0,0.00036712,3]
[310264647,1704425487766,-500.0,0.00036712,3]
[310264648,1704425487775,-346.58737013,0.00036712,3]
[310264649,1704425487786,-541.89970017,0.00036712,3]
[310264650,1704425487794,-500.0,0.00036712,3]
[310264651,1704425487804,-500.0,0.00036712,3]
[310264652,1704425487813,-500.0,0.00036712,3]
[310264653,1704425487822,-512.44568326,0.00036712,3]
[310264654,1704425487833,-535.2837952,0.00036712,3]
[310264655,1704425487843,-500.0,0.00036712,3]
[310264656,1704425487852,-890.64,0.00036712,3]
[310264657,1704425487861,-500.0,0.00036712,3]
[310264658,1704425487871,-500.0,0.00036712,3]
[310264659,1704425487880,-553.29862052,0.00036712,3]
[310264660,1704425487890,-500.0,0.00036712,3]
[310264661,1704425487899,-500.0,0.00036712,3]
[310264662,1704425487909,-500.0,0.00036712,3]
[310264663,1704425487919,-500.0,0.00036712,3]
[310264664,1704425487930,-500.0,0.00036712,3]
[310264665,1704425487940,-407.20997106,0.00036712,3]
[310264666,1704425487950,-500.0,0.00036712,3]
[310264667,1704425487959,-530.48509495,0.00036712,3]
[310264668,1704425487968,-500.0,0.00036712,3]
[310264669,1704425487978,-500.0,0.00036712,3]
[310264670,1704425487987,-500.0,0.00036712,3]
[310264671,1704425487996,-500.0,0.00036712,3]
[310264672,1704425488005,-500.0,0.00036712,3]
[310264673,1704425488014,-500.0,0.00036712,3]
[310264674,1704425488023,-500.0,0.00036712,3]
[310264675,1704425488032,-480.78982414,0.00036712,3]
[310264676,1704425488042,-500.0,0.00036712,3]
[310264677,1704425488051,-500.0,0.00036712,3]
[310264678,1704425488060,-500.0,0.00036712,3]
[310264679,1704425488069,-500.0,0.00036712,3]
[310264680,1704425488079,-500.0,0.00036712,3]
[310264681,1704425488088,-500.0,0.00036712,3]
[310264682,1704425488098,-500.0,0.00036712,3]
[310264683,1704425488108,-500.0,0.00036712,3]
[310264684,1704425488118,-500.0,0.00036712,3]
[310264685,1704425488128,-531.26935055,0.00036712,3]
[310264686,1704425488137,-500.0,0.00036712,3]
[310264687,1704425488147,-500.0,0.00036712,3]
[310264688,1704425488157,-500.0,0.00036712,3]
[310264689,1704425488166,-500.0,0.00036712,3]
[310264690,1704425488175,-501.96395276,0.00036712,3]
[310264691,1704425488185,-512.04746703,0.00036712,3]
[310264692,1704425488194,-500.0,0.00036712,3]
[310264693,1704425488204,-573.40167289,0.00036712,3]
[310264694,1704425488215,-500.0,0.00036712,3]
[310264695,1704425488224,-514.12843946,0.00036712,3]
[310264696,1704425488233,-500.0,0.00036712,3]
[310264697,1704425488243,-500.0,0.00036712,3]
[310264698,1704425488253,-500.0,0.00036712,3]
[310264699,1704425488262,-500.0,0.00036712,3]
[310264700,1704425488271,-500.0,0.00036712,3]
[310264701,1704425488280,-500.0,0.00036712,3]
[310264702,1704425488289,-513.95853793,0.00036712,3]
[310264703,1704425488299,-500.0,0.00036712,3]
[310264704,1704425488308,-500.0,0.00036712,3]
[310264705,1704425488318,-500.0,0.00036712,3]
[310264706,1704425488329,-530.67314766,0.00036712,3]
[310264707,1704425488338,-500.0,0.00036712,3]
[310264708,1704425488347,-500.0,0.00036712,3]
[310264709,1704425488357,-500.0,0.00036712,3]
[310264710,1704425488367,-500.0,0.00036712,3]
[310264711,1704425488377,-500.0,0.00036712,3]
[310264712,1704425488388,-500.0,0.00036712,3]
[310264713,1704425488397,-500.0,0.00036712,3]
[310264714,1704425488406,-150.0,0.00036712,3]
[310264715,1704425488415,-500.0,0.00036712,3]
[310264716,1704425488425,-500.0,0.00036712,3]
[310264717,1704425488434,-500.0,0.00036712,3]
[310264718,1704425488445,-500.0,0.00036712,3]
[310264719,1704425488454,-500.0,0.00036712,3]
[310264720,1704425488464,-500.0,0.00036712,3]
[310264721,1704425488476,-500.0,0.00036712,3]
[310264722,1704425488486,-534.23443036,0.00036712,3]
[310264723,1704425488495,-540.47753036,0.00036712,3]
[310264724,1704425488505,-540.31794091,0.00036712,3]
[310264725,1704425488514,-518.06696503,0.00036712,3]
[310264726,1704425488526,-500.0,0.00036712,3]
[310264727,1704425488538,-509.71101676,0.00036712,3]
[310264728,1704425488546,-500.0,0.00036712,3]
[310264729,1704425488556,-500.0,0.00036712,3]
[310264730,1704425488566,-500.0,0.00036712,3]
[310264731,1704425488577,-500.0,0.00036712,3]
[310264732,1704425488587,-519.58468109,0.00036712,3]
[310264733,1704425488596,-500.0,0.00036712,3]
[310264734,1704425488606,-500.0,0.00036712,3]
[310264735,1704425488616,-500.0,0.00036712,3]
[310264736,1704425488626,-500.0,0.00036712,3]
[310264737,1704425488636,-500.0,0.00036712,3]
[310264738,1704425488646,-500.0,0.00036712,3]
[310264739,1704425488655,-500.0,0.00036712,3]
[310264740,1704425488664,-500.0,0.00036712,3]
[310264741,1704425488674,-510.92651385,0.00036712,3]
[310264742,1704425488684,-500.0,0.00036712,3]
[310264743,1704425488695,-500.0,0.00036712,3]
[310264744,1704425488706,-481.98054456,0.00036712,3]
[310264745,1704425488716,-500.0,0.00036712,3]
[310264746,1704425488727,-500.0,0.00036712,3]
[310264747,1704425488736,-500.0,0.00036712,3]
[310264748,1704425488747,-500.0,0.00036712,3]
[310264749,1704425488756,-500.0,0.00036712,3]
[310264750,1704425488765,-500.0,0.00036712,3]
[310264751,1704425488775,-500.0,0.00036712,3]
[310264752,1704425488784,-500.0,0.00036712,3]
[310264753,1704425488793,-500.0,0.00036712,3]
[310264754,1704425488803,-500.0,0.00036712,3]
[310264755,1704425488813,-523.56939694,0.00036712,3]
[310264756,1704425488822,-500.0,0.00036712,3]
[310264757,1704425488831,-500.0,0.00036712,3]
[310264758,1704425488840,-508.74684559,0.00036712,3]
[310264759,1704425488850,-500.0,0.00036712,3]
[310264760,1704425488860,-500.0,0.00036712,3]
[310264761,1704425488869,-500.0,0.00036712,3]
[310264762,1704425488879,-500.18,0.00036712,3]
[310264763,1704425488889,-500.0,0.00036712,3]
[310264764,1704425488900,-500.0,0.00036712,3]
[310264765,1704425488909,-570.19088983,0.00036712,3]
[310264766,1704425488919,-500.0,0.00036712,3]
[310264767,1704425488929,-500.0,0.00036712,3]
[310264768,1704425488940,-500.0,0.00036712,3]
[310264769,1704425488953,-500.0,0.00036712,3]
[310264770,1704425488962,-1197.77,0.00036712,3]
[310264771,1704425488972,-500.0,0.00036712,3]
[310264772,1704425488981,-500.0,0.00036712,3]
[310264773,1704425488991,-214.29892543,0.00036712,3]
[310264774,1704425489001,-500.0,0.00036712,3]
[310264775,1704425489010,-633.57331518,0.00036712,3]
[310264776,1704425489020,-279.42592273,0.00036712,3]
[310264777,1704425489031,-559.0183928,0.00036712,3]
[310264778,1704425489040,-495.96021515,0.00036712,3]
[310264779,1704425489050,-500.0,0.00036712,3]
[310264780,1704425489059,-500.0,0.00036712,3]
[310264781,1704425489068,-500.0,0.00036712,3]
[310264782,1704425489078,-276.19788171,0.00036712,3]
[310264783,1704425489089,-529.94687515,0.00036712,3]
[310264784,1704425489100,-652.01,0.00036712,3]
[310264785,1704425489109,-500.0,0.00036712,3]
[310264786,1704425489119,-500.0,0.00036712,3]
[310264787,1704425489129,-1019.24031283,0.00036712,3]
[310264788,1704425489139,-511.87,0.00036712,3]
[310264789,1704425489149,-500.0,0.00036712,3]
[310264790,1704425489159,-378.93261285,0.00036712,3]
[310264791,1704425489168,-500.0,0.00036712,3]